bitfinex/quotes_ETHUSD_20220111
["timestamp","ask_amount","ask_price","bid_price","bid_amount"]
[1641911491711,0.01421059,3090.0,3089.0,0.388]
[1641911491905,3.83652821,3091.0,3089.2,0.01277213]
[1641911492187,10.84379266,3091.8,3089.2,0.01277213]
[1641911492188,3.83652821,3091.6,3090.0,1.61746]
[1641911492370,0.00511581,3090.9,3090.0,1.61746]
[1641911492576,0.0073895,3091.3,3090.1,1.38920686]
[1641911492769,3.83652821,3091.6,3090.2,0.80873]
[1641911492770,0.00454739,3090.8,3090.2,0.80873]
[1641911492970,0.00682108,3091.2,3090.2,0.80873]
[1641911493169,0.00397896,3090.7,3090.2,0.80873]
[1641911493371,1.14376236,3091.1,3090.2,1.68209444]
[1641911493570,0.00341054,3090.6,3090.3,0.80873]
[1641911493769,0.00568423,3091.0,3090.0,1.56746]
[1641911493969,0.00284212,3090.5,3090.0,1.56746]
[1641911494169,0.00568423,3091.0,3090.0,1.56746]
[1641911494370,0.00227369,3090.4,3089.8,2.86675147]
[1641911494570,1.0582205,3090.3,3089.7,3.23519]
[1641911494772,1.05992577,3090.3,3089.7,3.23519]
[1641911494971,0.00113685,3090.2,3089.8,0.00113685]
[1641911495174,0.00113685,3090.2,3089.8,0.55079413]
[1641911495372,0.00113685,3090.2,3089.8,0.54965728]
[1641911496003,1.3582205,3090.3,3089.8,0.54965728]
[1641911496004,1.25935735,3090.3,3089.8,0.54965728]
[1641911496201,1.25935735,3090.3,3089.9,0.00170527]
[1641911496602,1.0582205,3090.3,3089.9,0.00170527]
[1641911497002,4.22452821,3091.2,3089.5,2.11180346]
[1641911497003,5.06811926,3091.2,3089.5,2.11180346]
[1641911497202,5.03342821,3091.2,3089.6,0.00341055]
[1641911497403,0.00454738,3091.0,3090.0,1.29548025]
[1641911497603,2.96850393,3090.7,3090.1,2.96886124]
[1641911497808,2.96850393,3090.7,3090.6,4.34121328]
[1641911498105,2.23236451,3091.0,3090.2,2.39056927]
[1641911498503,0.94740567,3089.6,3089.1,1.0]
[1641911498704,0.00227369,3090.6,3089.7,1.38047926]
[1641911498903,0.00795793,3091.0,3090.2,0.80869]
[1641911499103,0.00511582,3090.5,3090.3,1.6173]
[1641911499303,2.796137,3091.0,3090.3,0.54954069]
[1641911499552,1.22638513,3091.1,3090.3,0.54954069]
[1641911499753,1.22638513,3091.1,3090.4,0.00284212]
[1641911500154,0.97770803,3090.9,3090.4,0.00284212]
[1641911500456,0.92770803,3090.9,3090.4,0.00284212]
[1641911500653,1.22770803,3090.9,3090.5,0.54954069]
[1641911501053,1.22770803,3090.9,3090.6,0.00170527]
[1641911501255,7.20981702,3090.8,3090.5,0.00170527]
[1641911501455,0.0694938,3090.5,3089.4,0.91590115]
[1641911501654,6.75,3090.6,3089.4,0.91590115]
[1641911501655,0.04502086,3089.7,3089.4,0.91590115]
[1641911501855,0.04502086,3089.7,3089.5,0.00625266]
[1641911502256,2.37056448,3090.7,3089.5,0.81519266]
[1641911502457,2.37056448,3090.7,3089.6,3.21303928]
[1641911502458,2.23236451,3089.9,3089.6,3.21303928]
[1641911502657,2.23236451,3089.9,3089.6,2.8594291]
[1641911502860,2.23236451,3089.9,3089.7,1.39077455]
[1641911503331,4.12085982,3090.7,3089.7,1.39077455]
[1641911503332,2.23236451,3090.7,3090.0,1.16504158]
[1641911503720,2.23236451,3090.7,3090.1,0.00284212]
[1641911503920,2.23236451,3090.7,3090.1,3.72676049]
[1641911504121,2.23236451,3090.7,3090.2,1.34386698]
[1641911504122,6.451e-05,3090.7,3090.2,1.34386698]
[1641911504320,6.451e-05,3090.7,3090.2,2.54285067]
[1641911504520,0.2006,3091.4,3091.2,0.00246722]
[1641911504720,0.2006,3091.4,3090.6,0.86117645]
[1641911504919,0.00284211,3091.3,3091.0,1.61691]
[1641911505121,2.74966534,3091.3,3091.0,1.61691]
[1641911505320,0.00227369,3091.2,3090.5,0.80865]
[1641911505519,0.00227369,3091.2,3090.3,0.00284212]
[1641911505726,0.00227369,3091.2,3090.6,0.00113685]
[1641911505727,0.00621271,3091.1,3090.6,0.00113685]
[1641911505920,6.92164983,3091.2,3089.9,0.91590115]
[1641911506120,7.22164983,3091.2,3089.9,0.91590115]
[1641911506321,0.01411231,3090.9,3090.0,0.00341054]
[1641911506520,0.00227369,3091.0,3090.0,0.00341054]
[1641911506722,0.8089653,3090.6,3090.0,0.00341054]
[1641911507153,0.84120195,3090.6,3090.0,0.00341054]
[1641911507553,0.84120195,3090.6,3089.4,0.00682108]
[1641911507958,0.87577076,3089.7,3089.4,1.34514438]
[1641911508151,0.87577076,3089.7,3089.4,0.00682108]
[1641911508358,0.87577076,3089.7,3088.8,0.92794402]
[1641911508359,0.77577076,3089.7,3089.5,0.00625266]
[1641911508556,0.77577076,3089.7,3089.4,0.00682108]
[1641911508557,1.07577076,3089.7,3089.4,0.00682108]
[1641911508750,1.07577076,3089.7,3088.9,0.0096632]
[1641911508950,1.07577076,3089.7,3088.7,0.01080005]
[1641911508951,2.74682323,3089.6,3088.7,0.01080005]
[1641911509151,1.10809468,3089.0,3088.7,0.01080005]
[1641911509353,2.74682323,3089.6,3088.7,0.01080005]
[1641911509558,1.49682746,3089.3,3088.7,0.01080005]
[1641911510356,0.8092272,3089.3,3088.7,0.01080005]
[1641911510552,0.8092272,3089.3,3087.9,1.61851]
[1641911510553,1.10939,3089.3,3087.9,1.61851]
[1641911510806,0.00284212,3089.2,3088.0,0.01477901]
[1641911511014,4.24649281,3089.2,3088.0,0.01477901]
[1641911511210,0.0022737,3089.1,3088.0,0.01477901]
[1641911511411,1.6188529,3088.9,3088.0,0.01477901]
[1641911511808,1.6188529,3088.9,3088.0,3.2]
[1641911512009,0.00170527,3089.0,3088.1,0.02469041]
[1641911512208,0.00170527,3089.0,3088.1,0.83742095]
[1641911512412,0.96996936,3088.7,3088.2,0.00284211]
[1641911512609,1.26996936,3088.7,3088.2,0.00284211]
[1641911512810,0.96996936,3088.7,3088.1,0.00341054]
[1641911513009,0.96996936,3088.7,3088.1,1.33487704]
[1641911513208,0.00113685,3088.9,3088.0,0.9464531]
[1641911513209,2.74682323,3088.6,3088.0,0.9464531]
[1641911513410,2.74966535,3088.6,3088.0,0.9464531]
[1641911513614,0.0022737,3088.5,3088.0,0.9464531]
[1641911514010,0.00170527,3088.4,3088.0,0.9464531]
[1641911514211,2.74682323,3088.6,3088.4,0.0476115]
[1641911514411,1.49682746,3089.2,3088.5,4.4]
[1641911514664,1.49682746,3089.6,3088.8,0.80906]
[1641911514865,0.00397897,3089.1,3088.8,0.80906]
[1641911515062,1.49682746,3089.6,3088.3,0.91590115]
[1641911515063,0.00625266,3089.5,3088.3,0.91590115]
[1641911515264,0.00341054,3089.0,3088.3,0.91590115]
[1641911515464,1.01384845,3089.1,3088.6,1.164227]
[1641911515663,0.00284212,3088.9,3088.6,1.164227]
[1641911515864,0.00341054,3089.0,3088.6,1.164227]
[1641911516065,1.01384845,3089.1,3088.6,1.164227]
[1641911516066,0.0022737,3088.8,3088.6,1.164227]
[1641911516268,0.00284212,3088.9,3088.6,1.164227]
[1641911516464,0.00170527,3088.7,3088.6,1.164227]
[1641911516666,1.01384845,3089.1,3088.1,0.00170527]
[1641911516667,0.0022737,3088.8,3088.1,0.00170527]
[1641911516865,1.31384845,3089.1,3088.1,0.00170527]
[1641911516866,0.00170527,3088.7,3088.1,0.00170527]
[1641911517267,1.93224537,3088.6,3088.1,0.00170527]
[1641911517672,0.3,3088.5,3088.1,0.00170527]
[1641911518309,1.12164842,3088.6,3088.1,0.00170527]
[1641911518911,0.00341054,3089.0,3088.4,1.4384593]
[1641911519107,0.00341054,3089.0,3088.3,0.01320589]
[1641911519307,0.00284212,3088.9,3088.2,0.80927]
[1641911519707,1.79682746,3089.1,3088.2,0.80927]
[1641911519708,0.0022737,3088.8,3088.2,0.80927]
[1641911520108,0.84750649,3088.9,3088.4,0.04196137]
[1641911520408,0.79750649,3088.9,3088.5,0.00170527]
[1641911520810,2.46240413,3088.8,3088.1,0.00397897]
[1641911521515,0.8095589,3088.5,3088.1,0.00397897]
[1641911521712,1.65487619,3088.5,3088.0,3.207e-05]
[1641911521911,0.3,3088.4,3088.0,3.207e-05]
[1641911522157,0.30170527,3088.4,3088.0,3.207e-05]
[1641911522356,0.00113685,3088.3,3088.0,3.207e-05]
[1641911522757,0.00403248,3088.2,3088.0,3.207e-05]
[1641911523157,1.0,3088.2,3088.0,3.207e-05]
[1641911523358,7.138,3088.1,3088.0,3.207e-05]
[1641911523557,7.138,3088.1,3086.8,0.55003387]
[1641911523758,9.94028428,3088.1,3086.8,0.55003387]
[1641911523958,9.94028428,3088.1,3086.6,0.91590115]
[1641911523959,18.81,3088.0,3086.6,0.91590115]
[1641911524162,10.54028428,3088.1,3085.7,8.06076472]
[1641911524163,0.0008,3087.6,3086.9,0.00682108]
[1641911524358,0.388,3087.5,3086.9,0.00682108]
[1641911524561,0.0008,3087.6,3086.9,0.00682108]
[1641911524562,0.8108217,3087.6,3086.9,0.00682108]
[1641911525058,0.03921994,3087.6,3086.9,0.00682108]
[1641911525459,0.0008,3087.6,3087.0,1.39814396]
[1641911525663,1.65625522,3087.7,3087.0,1.39814396]
[1641911525910,1.10354934,3087.3,3087.0,1.39814396]
[1641911526110,1.6192761,3088.0,3087.1,0.80959]
[1641911526409,5.2211,3088.6,3087.9,1.3807362]
[1641911526410,0.00113685,3088.3,3087.9,1.3807362]
[1641911526613,0.00113685,3088.3,3088.0,0.04810116]
[1641911527013,0.00113685,3088.3,3088.0,3.00481073]
[1641911527212,0.00113685,3088.3,3088.1,0.0178059]
[1641911527412,3.6789,3090.0,3088.3,0.02892579]
[1641911527613,0.04711347,3090.1,3089.0,1.12919144]
[1641911527812,0.04711347,3090.1,3089.1,0.03827516]
[1641911527813,0.00795793,3089.7,3089.1,0.03827516]
[1641911528012,0.00795793,3089.7,3089.0,1.12192953]
[1641911528212,2.44028565,3090.1,3088.3,3.15438883]
[1641911528213,1.03214883,3089.1,3088.3,3.15438883]
[1641911528412,0.8093186,3089.0,3088.2,6.75]
[1641911528614,0.8093186,3089.0,3088.3,0.80927]
[1641911528615,0.00397896,3089.0,3088.3,0.80927]
[1641911528813,0.00341054,3088.9,3088.3,0.80927]
[1641911529212,0.00284212,3088.8,3088.1,0.917038]
[1641911529425,0.00284212,3088.8,3088.1,0.00113685]
[1641911529667,1.84169883,3089.1,3088.1,0.00113685]
[1641911529668,0.8094131,3088.5,3088.1,0.00113685]
[1641911529964,0.84423845,3088.5,3087.5,0.00454739]
[1641911530165,0.84564065,3087.9,3087.5,0.00454739]
[1641911530364,0.80953,3088.1,3087.8,1.54906826]
[1641911530565,0.8094502,3088.3,3087.8,1.54906826]
[1641911530765,3.2378462,3088.6,3087.9,0.00227369]
[1641911530967,0.00341054,3088.9,3087.9,0.00227369]
[1641911530968,0.00341054,3088.9,3088.3,0.01260746]
[1641911531166,0.00113685,3088.5,3088.4,2.86379182]
[1641911531367,0.00113685,3088.5,3088.1,1.61847]
[1641911531368,1.12491843,3088.5,3088.1,1.61847]
[1641911531566,1.12491843,3088.5,3087.9,0.00227369]
[1641911531567,0.8093698,3088.4,3087.9,0.00227369]
[1641911531767,0.03742336,3088.4,3087.9,0.00227369]
[1641911531969,1.12605528,3088.5,3087.2,6.09]
[1641911531970,1.42605528,3088.5,3087.4,0.00511581]
[1641911532166,1.72605528,3088.5,3087.3,0.00568423]
[1641911532368,2.11405528,3088.5,3087.3,0.00568423]
[1641911532568,2.11405528,3088.5,3086.8,1.30916081]
[1641911532767,2.11405528,3088.5,3086.7,0.00909478]
[1641911532967,0.03702502,3087.7,3086.9,0.00795793]
[1641911533168,0.3,3087.7,3086.4,0.01080005]
[1641911533413,0.3,3087.7,3086.5,0.80973]
[1641911533608,0.8804054,3086.9,3086.7,1.28863331]
[1641911533812,0.80975,3087.4,3086.7,1.28863331]
[1641911534011,1.6191177,3088.3,3086.8,2.81447573]
[1641911534211,0.00113685,3088.5,3087.2,0.05411583]
[1641911534410,0.00113685,3088.5,3087.9,0.04632076]
[1641911534811,0.00113685,3088.5,3088.2,0.04359272]
[1641911535008,0.00113685,3088.5,3088.1,1.12332245]
[1641911535211,0.00113685,3088.5,3088.2,0.0269651]
[1641911535410,0.00113685,3088.5,3088.2,0.8092]
[1641911535618,3.685e-05,3088.5,3088.2,0.8092]
[1641911535809,0.3247,3089.9,3088.3,7.138]
[1641911536012,0.3247,3089.9,3088.4,2.8697412]
[1641911536208,0.3247,3089.9,3088.4,3.19394938]
[1641911536209,0.0073895,3089.8,3088.4,3.19394938]
[1641911536410,0.0073895,3089.8,3089.0,0.80896]
[1641911536609,0.00682108,3089.7,3089.1,0.06379182]
[1641911536810,0.00682108,3089.7,3089.4,0.03114677]
[1641911537057,0.3247,3089.9,3089.0,2.96641365]
[1641911537058,0.00625265,3089.6,3089.0,2.96641365]
[1641911537263,0.00625265,3089.6,3088.9,2.42685]
[1641911537264,0.00625265,3089.6,3088.9,0.80893]
[1641911537462,0.3247,3089.9,3088.6,1.61786]
[1641911537463,0.02203924,3089.5,3088.6,2.42688]
[1641911537665,0.0127724,3089.3,3088.3,0.00113685]
[1641911538063,0.03458301,3089.1,3088.2,0.81101527]
[1641911538363,0.0127724,3089.3,3088.2,0.81101527]
[1641911538364,0.00454738,3089.0,3088.2,0.41101527]
[1641911538562,0.00454738,3089.0,3088.1,1.16769975]
[1641911538563,1.6187601,3088.9,3088.1,1.16769975]
[1641911538863,1.6187601,3088.9,3087.2,2.80594938]
[1641911538864,0.00341054,3088.8,3087.2,2.80594938]
[1641911539069,0.00341054,3088.8,3087.1,3.23676]
[1641911539264,0.00341054,3088.8,3087.3,0.00511581]
[1641911539265,0.00284211,3088.7,3087.3,0.00511581]
[1641911539463,0.00284211,3088.7,3087.4,0.8095]
[1641911539766,1.4007724,3089.3,3087.6,2.53129673]
[1641911539767,1.95548052,3088.4,3087.6,2.53129673]
[1641911539964,0.80947,3088.4,3087.6,2.53129673]
[1641911540164,0.3,3088.4,3087.7,0.00284212]
[1641911540569,0.3,3088.5,3087.7,0.00284212]
[1641911540811,0.3,3088.9,3087.7,0.00284212]
[1641911541012,0.80956,3088.3,3087.6,0.00341054]
[1641911541211,0.80956,3088.3,3087.2,2.80594938]
[1641911541212,2.4285546,3088.4,3087.2,0.00568424]
[1641911541411,1.11470024,3088.1,3087.3,0.86505333]
[1641911541612,1.11470024,3088.1,3087.2,0.00568424]
[1641911541815,1.11470024,3088.1,3087.4,0.00454739]
[1641911541816,1.71470024,3088.1,3087.4,0.00454739]
[1641911542012,1.71470024,3088.1,3087.2,0.00568424]
[1641911542318,1.6193431,3087.7,3087.2,0.00568424]
[1641911542511,1.95342308,3087.7,3087.2,0.00568424]
[1641911542714,0.88711785,3087.5,3087.2,0.00568424]
[1641911542913,1.18711785,3087.5,3087.2,0.00568424]
[1641911543115,0.00734634,3087.4,3087.2,0.00568424]
[1641911543312,0.3,3087.5,3086.8,0.00795793]
[1641911543513,2.74963916,3088.0,3086.8,0.00795793]
[1641911543713,0.80956,3088.3,3086.8,0.00795793]
[1641911543714,0.03778109,3088.1,3086.8,0.00795793]
[1641911543915,0.3,3088.0,3086.9,0.02670247]
[1641911544115,1.00425627,3087.8,3087.0,1.13694421]
[1641911544321,1.00425627,3087.8,3087.0,1.1437653]
[1641911544592,0.3,3088.3,3087.1,0.00625266]
[1641911544593,0.03920056,3088.0,3087.1,0.00625266]
[1641911544780,0.03920056,3088.0,3087.1,0.5562871]
[1641911544987,0.3,3088.2,3087.2,0.02279709]
[1641911545284,0.00113684,3088.4,3087.2,0.02897859]
[1641911545481,0.00113684,3088.4,3087.9,0.84983766]
[1641911545682,1.12610481,3088.7,3087.2,0.00568424]
[1641911545882,1.12610481,3088.7,3088.0,0.00113685]
[1641911546082,0.00227369,3088.6,3088.2,0.02576134]
[1641911546282,0.00227369,3088.6,3088.1,1.18208264]
[1641911546485,0.00170527,3088.5,3088.1,1.18208264]
[1641911546782,0.00113684,3088.4,3088.1,1.18208264]
[1641911547183,2.74915168,3088.6,3088.3,0.80927]
[1641911547385,0.3684,3088.8,3088.3,0.80927]
[1641911547587,4.12373903,3089.7,3088.4,0.0440442]
[1641911547785,0.00170527,3088.7,3088.5,0.388]
[1641911548083,0.00113685,3088.6,3088.5,0.388]
[1641911548306,0.00113685,3088.6,3088.2,2.16954128]
[1641911548507,0.03618103,3088.5,3088.2,2.16954128]
[1641911548708,0.00113685,3088.6,3088.3,0.55003444]
[1641911548908,0.00113685,3088.6,3088.3,1.67226126]
[1641911549407,0.00113685,3088.6,3088.3,0.55003444]
[1641911550608,0.0134289,3088.6,3088.3,0.55003444]
[1641911551209,0.0134289,3088.6,3087.0,1.06626438]
[1641911551210,1.0591947,3087.8,3087.0,1.06626438]
[1641911551409,5.2,3088.4,3087.0,1.06626438]
[1641911551610,0.01402769,3088.3,3087.1,0.00625266]
[1641911551808,5.5,3088.4,3087.1,0.00625266]
[1641911552072,5.5,3088.4,3087.1,0.81582266]
[1641911552258,2.74868446,3088.2,3087.1,2.10515292]
[1641911552459,2.74868446,3088.2,3087.1,2.0961835]
[1641911552659,0.00568423,3088.1,3087.1,2.0961835]
[1641911553159,1.0695947,3087.8,3087.1,2.0961835]
[1641911553460,0.00341054,3087.7,3087.1,0.80685324]
[1641911553861,4.54760487,3088.7,3087.1,0.80685324]
[1641911553862,0.00284212,3087.6,3087.1,0.80685324]
[1641911554061,0.00284212,3087.6,3087.2,0.02158653]
[1641911554260,2.76616,3088.6,3087.1,0.80685324]
[1641911554261,0.00227369,3087.5,3087.1,0.80685324]
[1641911554461,0.00227369,3087.5,3087.4,0.80948]
[1641911554662,2.74921055,3088.2,3087.5,1.14255649]
[1641911554861,3.04921055,3088.2,3087.4,0.80948]
[1641911555060,0.00568423,3088.1,3087.4,0.80948]
[1641911555464,0.00511581,3088.0,3087.4,0.80948]
[1641911555902,0.00454739,3087.9,3087.4,0.80948]
[1641911556102,0.00454739,3087.9,3087.5,0.03156502]
[1641911556302,0.3,3088.1,3087.5,0.03156502]
[1641911556303,0.00397896,3087.8,3087.5,0.03156502]
[1641911556707,0.00341054,3087.7,3087.4,0.80948]
[1641911557105,0.00284212,3087.6,3087.4,0.80948]
[1641911557505,0.00227369,3087.5,3087.4,0.80948]
[1641911558604,0.00227369,3087.5,3087.3,1.47500591]
[1641911558805,0.00227369,3087.5,3087.2,0.80955]
[1641911559009,0.00170527,3087.4,3086.7,0.91662195]
[1641911559566,0.80975,3087.6,3086.8,0.00170527]
[1641911559567,0.96432871,3086.9,3086.8,0.00170527]
[1641911560361,1.26432871,3086.9,3086.8,0.00170527]
[1641911560557,1.61995,3087.2,3086.8,0.00170527]
[1641911560761,0.80988,3087.1,3086.0,0.00625266]
[1641911560957,0.8098107,3087.3,3086.1,0.80984]
[1641911561157,1.11094755,3087.3,3086.1,0.80984]
[1641911561358,1.11094755,3087.3,3086.4,1.48426093]
[1641911561759,1.18827359,3087.3,3086.5,0.00341054]
[1641911561959,0.8098275,3087.1,3086.5,0.00341054]
[1641911562161,0.84775269,3087.1,3086.5,0.00341054]
[1641911562359,0.84775269,3087.1,3085.9,6.09]
[1641911562360,0.3,3087.0,3086.0,0.00625266]
[1641911562761,0.3,3087.0,3086.1,0.85249228]
[1641911562961,0.77034643,3086.8,3086.1,1.44621478]
[1641911563310,0.3,3086.8,3086.2,0.00511581]
[1641911563508,2.46254752,3087.1,3086.2,0.00511581]
[1641911564110,2.4296847,3087.1,3086.2,0.00511581]
[1641911564312,0.02413938,3086.9,3086.2,0.00511581]
[1641911564710,1.78419077,3087.0,3086.2,0.98877876]
[1641911564910,1.27433977,3087.0,3086.2,0.98877876]
[1641911565112,1.27433977,3087.0,3086.3,0.00454739]
[1641911565310,0.00637203,3086.9,3086.3,0.00454739]
[1641911565511,0.00637203,3086.9,3086.1,1.40076217]
[1641911565710,0.00637203,3086.9,3086.6,1.16720712]
[1641911565711,0.76266892,3086.9,3086.6,1.16720712]
[1641911565918,2.24290334,3087.7,3086.6,1.16720712]
[1641911566111,2.24290334,3087.7,3086.7,0.01536976]
[1641911566411,0.00113684,3087.0,3086.7,0.0206778]
[1641911566711,0.00113684,3087.0,3086.7,1.13125149]
[1641911567357,0.00113684,3087.0,3086.8,0.80964]
[1641911568657,0.48529997,3087.7,3086.8,0.80964]
[1641911568658,0.3471,3087.7,3086.8,0.80964]
[1641911568858,0.3471,3087.7,3087.0,0.05112592]
[1641911569063,0.00341055,3087.6,3087.3,0.0247229]
[1641911569261,0.00341055,3087.6,3087.2,0.80932]
[1641911569461,0.3471,3087.7,3087.3,1.05966927]
[1641911569659,2.60510774,3088.6,3088.0,1.1810705]
[1641911569862,3.20649303,3088.9,3087.3,0.00113684]
[1641911569863,0.97467856,3088.9,3087.3,0.00113684]
[1641911570063,0.00625266,3088.6,3087.3,0.00113684]
[1641911570463,0.00568424,3088.5,3087.1,0.00227369]
[1641911570663,0.00568424,3088.5,3087.2,0.388]
[1641911570907,0.00511581,3088.4,3087.3,2.75510774]
[1641911571110,0.00511581,3088.4,3087.7,1.61864]
[1641911571307,0.00454739,3088.3,3087.8,0.02330465]
[1641911571706,0.00397897,3088.2,3087.9,1.21858363]
[1641911571905,1.48787632,3089.3,3088.0,6.74259341]
[1641911572105,4.25336503,3089.7,3088.0,6.74373025]
[1641911572106,1.48787632,3089.5,3088.0,6.74373025]
[1641911572306,0.00568423,3089.2,3088.6,1.61813]
[1641911572708,0.00511581,3089.1,3088.7,0.9053081]
[1641911572907,1.48787632,3089.5,3089.3,0.99332456]
[1641911573107,1.48787632,3089.5,3089.4,1.91337962]
[1641911573308,2.74862109,3089.6,3089.4,1.91337962]
[1641911573712,2.7514632,3089.6,3089.4,1.91337962]
[1641911573909,2.7514632,3089.6,3089.3,1.61784]
[1641911574577,2.7514632,3089.6,3088.8,0.00170527]
[1641911575067,2.7014632,3089.6,3089.4,0.54975886]
[1641911575667,0.00284211,3089.6,3089.4,0.54975886]
[1641911576867,0.00284211,3089.6,3088.7,0.91853847]
[1641911577267,0.00284211,3089.6,3088.9,1.31515798]
[1641911578325,0.00284211,3089.6,3089.0,0.86375751]
[1641911578725,0.00284211,3089.6,3088.8,0.00170527]
[1641911578928,0.00284211,3089.6,3088.3,0.91626477]
[1641911578929,0.0126503,3088.9,3088.3,0.91626477]
[1641911579125,0.0126503,3088.9,3087.9,1.46602363]
[1641911579126,6.7,3088.7,3087.9,1.46602363]
[1641911579328,0.00958172,3088.8,3087.9,1.46602363]
[1641911579329,0.03012633,3088.8,3087.9,1.46602363]
[1641911579625,0.30170527,3088.7,3088.0,0.00227369]
[1641911579825,0.80955,3088.4,3088.0,0.00227369]
[1641911580026,0.3,3088.3,3088.0,0.00227369]
[1641911580428,0.8094802,3088.3,3088.0,0.00227369]
[1641911580625,0.3,3088.2,3088.0,0.00227369]
[1641911580826,0.80962,3087.7,3086.9,0.00852635]
[1641911581027,0.80962,3087.7,3086.6,1.6191]
[1641911581028,0.00596432,3087.6,3086.6,1.6191]
[1641911581226,0.3,3088.2,3086.9,0.80956]
[1641911581430,0.3,3088.2,3087.4,2.66002661]
[1641911581431,1.30180437,3088.2,3087.4,2.66002661]
[1641911581625,1.30180437,3088.2,3086.7,0.0096632]
[1641911581626,0.3,3088.2,3087.1,0.80941]
[1641911581828,2.75466239,3088.1,3086.1,0.08170439]
[1641911582070,0.80962,3087.7,3087.2,0.00170527]
[1641911582463,1.10962,3087.7,3086.6,0.00511581]
[1641911582664,1.10962,3087.7,3086.1,0.08170439]
[1641911582665,0.8097096,3087.4,3086.8,0.00397896]
[1641911582865,0.8097096,3087.4,3086.6,0.00511581]
[1641911582866,0.84729482,3086.9,3086.6,0.00511581]
[1641911583064,0.84729482,3086.9,3086.1,0.08170439]
[1641911583065,0.84729482,3086.9,3086.3,0.00682108]
[1641911583267,0.84729482,3086.9,3086.2,0.0073895]
[1641911583664,0.8098973,3086.6,3086.2,0.0073895]
[1641911583867,0.87219608,3086.9,3086.2,0.0073895]
[1641911584068,0.84729482,3086.9,3086.2,0.0073895]
[1641911584265,0.80989,3086.8,3086.2,0.0073895]
[1641911584464,0.00369619,3086.7,3086.2,0.0073895]
[1641911584666,0.84729482,3086.9,3086.2,0.0073895]
[1641911585265,1.14729482,3086.9,3086.2,0.0073895]
[1641911585466,0.00820266,3086.5,3086.2,0.0073895]
[1641911585667,1.6198182,3086.6,3086.2,0.0073895]
[1641911585912,0.3,3086.9,3086.2,1.3737803]
[1641911586210,0.00341054,3086.8,3086.2,1.3737803]
[1641911586613,0.00284211,3086.7,3086.3,1.65327656]
[1641911586808,0.00284211,3086.7,3086.4,0.9602093]
[1641911587010,2.7313565,3088.1,3087.6,1.45527504]
[1641911587209,0.96496403,3088.3,3087.1,0.8095]
[1641911587409,0.00738951,3088.0,3087.1,0.8095]
[1641911587811,0.00682109,3087.9,3086.8,1.61899]
[1641911588010,0.00682109,3087.9,3087.6,1.10436619]
[1641911588210,0.00625266,3087.8,3087.6,1.91373619]
[1641911588612,0.00568424,3087.7,3087.6,1.10436619]
[1641911589014,0.00568424,3087.7,3087.1,0.80943]
[1641911589213,0.00568424,3087.7,3087.5,1.24156454]
[1641911589411,0.00511582,3087.6,3087.5,1.24156454]
[1641911590064,0.00511582,3087.6,3087.5,2.31859207]
[1641911590561,0.00511582,3087.6,3087.5,1.24156454]
[1641911591363,0.00511582,3087.6,3087.1,1.61883]
[1641911591563,0.00511582,3087.6,3086.8,3.23786]
[1641911591564,0.00511582,3087.6,3086.8,1.61907]
[1641911591767,1.02851226,3087.0,3086.5,0.80969]
[1641911591965,0.00454739,3087.5,3086.5,0.80969]
[1641911592165,4.79229555,3088.1,3086.5,0.80969]
[1641911592166,0.00113685,3086.9,3086.5,0.80969]
[1641911592365,0.00397897,3087.4,3086.9,1.13700324]
[1641911592564,0.00397897,3087.4,3086.5,0.80969]
[1641911592763,3.13955509,3088.1,3086.5,0.80969]
[1641911592764,0.00341055,3087.3,3086.5,0.80969]
[1641911593169,0.00284212,3087.2,3086.5,0.80969]
[1641911593607,0.0022737,3087.1,3086.6,1.36864823]
[1641911594010,1.11920504,3086.9,3086.5,0.80969]
[1641911594209,1.11920504,3086.9,3086.4,0.00170527]
[1641911594611,1.11920504,3086.9,3086.0,0.00397896]
[1641911595011,1.02733299,3086.2,3086.0,0.00397896]
[1641911595213,1.02733299,3086.2,3085.6,0.00625265]
[1641911596413,0.96392519,3085.7,3085.6,0.00625265]
[1641911597463,1.26392519,3085.7,3085.6,0.00625265]
[1641911598464,1.26392519,3085.7,3085.0,25.10244295]
[1641911598465,6.15,3085.5,3085.0,16.08024295]
[1641911598664,0.8104225,3085.3,3085.0,6.77764295]
[1641911598861,0.3,3085.2,3085.0,0.29633507]
[1641911599061,5.86211375,3085.1,3085.0,0.29633507]
[1641911599260,6.16211375,3085.1,3085.0,0.29633507]
[1641911599464,0.31211375,3085.1,3084.2,0.0225]
[1641911599767,1.73168693,3085.0,3084.9,0.00113685]
[1641911600665,2.03168693,3085.0,3084.9,0.00113685]
[1641911601115,0.01283116,3085.3,3084.9,0.00113685]
[1641911601311,5.12373903,3086.3,3084.9,5.50703685]
[1641911601312,0.15049385,3086.1,3084.9,5.50703685]
[1641911601512,0.15049385,3086.1,3085.0,0.0223237]
[1641911601712,0.15049385,3086.1,3084.9,5.50703685]
[1641911601713,0.00511581,3086.0,3084.9,5.50703685]
[1641911601912,0.00511581,3086.0,3084.9,7.12714685]
[1641911602114,0.00454739,3085.9,3085.2,2.44799326]
[1641911602316,0.00454739,3085.9,3084.9,5.50703685]
[1641911602317,0.81023,3085.7,3084.9,5.50703685]
[1641911602512,0.00397896,3085.8,3084.9,5.50703685]
[1641911602713,0.00284212,3085.6,3084.9,5.50703685]
[1641911602913,0.8103216,3085.3,3084.9,5.50703685]
[1641911603314,1.08672386,3085.3,3084.9,5.50703685]
[1641911603512,1.66041129,3085.9,3084.9,5.50703685]
[1641911603713,0.81024,3085.4,3084.9,5.50703685]
[1641911603914,0.00397896,3085.8,3084.9,5.49613453]
[1641911604114,0.0022737,3085.3,3085.0,0.02129649]
[1641911604313,0.00454739,3085.7,3084.9,5.49613453]
[1641911604564,0.00170527,3085.2,3084.9,5.49613453]
[1641911604760,1.0186095,3085.2,3084.9,5.49613453]
[1641911604964,0.02420733,3085.0,3083.0,0.16842158]
[1641911605164,0.02420733,3085.0,3082.6,1.4204379]
[1641911605165,0.8104949,3084.9,3084.1,0.33275965]
[1641911605362,0.8104949,3084.9,3084.3,0.00341054]
[1641911605561,0.31394798,3085.1,3084.3,0.00341054]
[1641911605562,0.00113685,3085.1,3084.3,0.00341054]
[1641911605762,0.00113685,3085.1,3084.4,0.03499154]
[1641911606062,0.00113685,3085.1,3084.5,1.62021]
[1641911606261,0.00113685,3085.1,3084.5,1.62248369]
[1641911606562,0.00113685,3085.1,3084.6,1.10331044]
[1641911607061,0.00113685,3085.1,3084.7,0.00113684]
[1641911607261,0.00113685,3085.1,3085.0,1.22014219]
[1641911607861,0.00113685,3085.1,3084.8,0.55049793]
[1641911609009,0.00113685,3085.1,3084.8,2.98065793]
[1641911609211,0.00113685,3085.1,3084.9,0.03035141]
[1641911609509,0.00113685,3085.1,3084.8,2.98065793]
[1641911609911,0.00113685,3085.1,3084.9,1.41320308]
[1641911610311,2.75165452,3086.2,3085.0,5.85]